bitfinex/quotes_ETHUSD_20260302
["timestamp","ask_amount","ask_price","bid_price","bid_amount"]
[1772463249499,0.002,1978.9,1977.1,7.51888056]
[1772463249700,0.002,1978.9,1977.5,6.25440229]
[1772463249900,0.002,1978.9,1977.7,6.25440229]
[1772463251452,8.4110266,1979.3,1977.7,6.25440229]
[1772463251453,1.26485676,1979.7,1978.3,6.25440229]
[1772463251729,0.002,1979.7,1978.4,1.566]
[1772463251929,1.26482884,1979.7,1978.4,1.566]
[1772463252304,1.26484654,1979.7,1978.4,1.566]
[1772463252629,1.2649021,1979.6,1978.4,1.566]
[1772463252832,1.2648823,1979.6,1978.4,1.566]
[1772463253202,0.002,1979.6,1978.4,1.566]
[1772463253403,0.002,1979.6,1978.5,7.51798581]
[1772463253749,0.002,1979.6,1978.5,1.26358352]
[1772463254606,0.002,1979.6,1978.5,6.0835917]
[1772463255218,0.002,1979.6,1978.5,1.26358352]
[1772463255419,0.002,1979.6,1978.3,5.05433409]
[1772463256119,4.71695901,1979.6,1978.3,5.05433409]
[1772463256328,4.71695901,1979.6,1978.3,1.26371126]
[1772463256633,4.71495901,1979.4,1978.1,5.05529329]
[1772463257028,4.71495901,1979.2,1978.0,1.26539173]
[1772463257216,4.71495901,1979.2,1978.0,1.26543812]
[1772463257417,6.09967004,1979.1,1978.0,0.00153886]
[1772463257621,4.8364696,1979.0,1978.0,0.00153886]
[1772463258007,2.095,1978.9,1978.0,0.00153886]
[1772463258203,4.8364696,1978.8,1977.1,1.26447827]
[1772463259206,5.333,1978.5,1977.1,1.26447827]
[1772463259407,6.10018086,1978.3,1977.0,0.00153886]
[1772463259931,2.094,1978.2,1977.0,0.00153886]
[1772463260323,6.10018086,1978.3,1977.0,0.00153886]
[1772463260509,3.35771126,1978.3,1977.0,0.00153886]
[1772463260711,4.8364696,1978.2,1977.0,0.00153886]
[1772463261124,2.094,1978.1,1977.0,0.00153886]
[1772463261434,7.14790095,1978.3,1977.0,0.00153886]
[1772463261624,4.8364696,1978.2,1977.0,0.00153886]
[1772463262535,2.093,1978.1,1977.0,0.00153886]
[1772463262709,3.35671126,1978.3,1977.0,0.00153886]
[1772463262910,4.8364696,1978.2,1977.0,0.00153886]
[1772463263536,4.8364696,1978.0,1977.0,0.00153886]
[1772463264035,4.8364696,1977.8,1977.0,0.00153886]
[1772463264436,2.7117938,1978.0,1977.0,0.00153886]
[1772463264628,2.093,1977.9,1977.0,0.00153886]
[1772463264937,2.7117938,1978.0,1977.0,0.00153886]
[1772463265315,3.35683903,1978.1,1977.0,0.00153886]
[1772463265539,5.05470927,1978.4,1977.0,0.00153886]
[1772463265739,3.35671126,1978.3,1977.0,0.00153886]
[1772463265911,2.093,1978.2,1977.0,0.00153886]
[1772463266313,1.26371126,1978.3,1977.0,4.98201864]
[1772463266507,3.35671126,1978.3,1977.0,4.98201864]
[1772463266938,3.35671126,1978.3,1977.0,0.00153886]
[1772463267142,2.092,1978.8,1977.1,4.98047978]
[1772463267330,4.8364696,1978.7,1977.1,4.98047978]
[1772463267536,1.26358352,1978.5,1977.2,1.26441432]
[1772463267720,3.35544031,1978.8,1977.3,4.98047978]
[1772463267923,1.26480377,1979.0,1977.5,4.98047978]
[1772463268439,2.091,1978.9,1977.5,4.98047978]
[1772463268844,4.8364696,1978.8,1977.2,1.26441432]
[1772463269730,4.8364696,1978.6,1977.1,5.05765729]
[1772463270426,0.00153886,1979.0,1977.2,4.98047978]
[1772463270670,4.8364696,1978.8,1977.2,4.98047978]
[1772463271549,1.26351966,1978.6,1977.4,4.98047978]
[1772463271855,7.14186164,1978.7,1977.4,4.98047978]
[1772463271856,3.35150574,1978.7,1977.4,4.98047978]
[1772463272027,1.26350574,1978.7,1977.4,4.98047978]
[1772463272224,0.00153886,1979.0,1977.5,4.98047978]
[1772463272422,1.26482051,1979.0,1977.7,4.98047978]
[1772463272665,6.10129011,1979.0,1977.6,1.554]
[1772463272872,6.10129011,1979.0,1977.6,6.53447978]
[1772463273024,0.002,1978.3,1977.7,4.98047978]
[1772463273224,0.00153886,1979.0,1977.7,4.98047978]
[1772463273424,0.00153886,1979.0,1978.0,4.98047978]
[1772463273659,0.00153886,1979.0,1978.1,1.26383903]
[1772463275027,6.10147859,1979.5,1978.1,1.26383903]
[1772463275227,5.05217086,1979.4,1978.1,1.26383903]
[1772463275463,1.26300899,1979.4,1978.1,1.26383903]
[1772463275679,6.10146393,1979.5,1978.1,4.98047978]
[1772463275833,6.9204696,1979.4,1978.0,5.056895]
[1772463276237,4.8364696,1979.3,1978.0,5.056895]
[1772463276455,4.8364696,1979.2,1978.0,5.056895]
[1772463276636,4.8364696,1978.8,1978.0,0.00153886]
[1772463276838,2.084,1979.4,1978.0,0.00153886]
[1772463276839,4.8364696,1978.6,1978.0,0.00153886]
[1772463277045,4.8364696,1978.4,1978.0,0.00153886]
[1772463277460,4.8364696,1978.3,1977.2,1.26440341]
[1772463277633,3.34777514,1978.2,1977.1,0.001]
[1772463277969,2.084,1978.1,1977.1,0.001]
[1772463278189,6.9204696,1978.1,1977.1,0.001]
[1772463278772,2.084,1978.0,1977.1,0.001]
[1772463279682,1.26403074,1977.8,1977.1,0.001]
[1772463280153,2.083,1977.7,1977.1,0.001]
[1772463280346,2.083,1977.6,1977.1,0.001]
[1772463280672,6.10048315,1977.9,1976.8,0.001]
[1772463280849,2.083,1977.8,1976.8,0.001]
[1772463281049,6.10048315,1977.9,1976.8,0.001]
[1772463281372,2.08453886,1978.0,1976.8,0.001]
[1772463281545,3.34846447,1978.0,1976.8,0.001]
[1772463281743,3.34847648,1978.0,1976.8,0.001]
[1772463282275,2.082,1977.9,1976.8,0.001]
[1772463282476,1.26547648,1978.0,1976.8,0.001]
[1772463282477,2.082,1977.8,1976.8,0.001]
[1772463282659,6.9184696,1977.8,1976.8,0.001]
[1772463283275,2.082,1977.9,1976.8,0.001]
[1772463283581,6.9184696,1977.9,1976.8,0.001]
[1772463283783,4.8364696,1977.7,1976.8,0.001]
[1772463284148,5.333,1977.6,1976.6,0.001]
[1772463284453,4.8364696,1977.5,1976.6,0.001]
[1772463284650,6.9184696,1977.5,1976.6,0.001]
[1772463284882,4.8364696,1977.4,1976.6,0.001]
[1772463285052,6.9184696,1977.3,1976.6,0.001]
[1772463285254,6.9184696,1977.2,1976.6,0.001]
[1772463285449,6.9184696,1977.1,1976.6,0.001]
[1772463285671,1.2646062,1976.9,1976.6,0.001]
[1772463285878,2.082,1976.8,1976.6,0.001]
[1772463286089,2.082,1976.7,1976.6,0.001]
[1772463286292,2.082,1977.0,1976.6,0.001]
[1772463286799,5.05741933,1977.3,1976.6,0.001]
[1772463287162,2.082,1977.2,1976.6,0.001]
[1772463287585,3.82703481,1977.2,1976.6,0.001]
[1772463287756,7.46937697,1977.7,1976.6,0.001]
[1772463287757,8.88371167,1977.6,1976.6,0.001]
[1772463288082,2.082,1977.5,1976.6,0.001]
[1772463288285,3.82703481,1977.5,1976.6,0.001]
[1772463288487,2.083,1977.4,1976.6,0.001]
[1772463288786,2.083,1977.4,1976.7,0.001]
[1772463288977,5.91003481,1977.4,1976.7,0.001]
[1772463289179,2.082,1977.3,1976.7,0.001]
[1772463289360,2.082,1977.5,1976.7,0.001]
[1772463289563,0.00153886,1978.0,1976.7,0.001]
[1772463289564,1.26548849,1978.0,1976.7,0.001]
[1772463289900,5.0925233,1978.0,1976.7,1.26573415]
[1772463290062,3.82857367,1978.0,1976.7,1.26573415]
[1772463290403,1.26544731,1978.0,1976.8,3.53921172]
[1772463290562,0.00153886,1978.0,1976.8,3.53921172]
[1772463290895,1.26352914,1978.6,1977.0,3.53921172]
[1772463291054,1.2634408,1978.8,1977.2,3.53921172]
[1772463291360,2.08,1978.8,1977.2,3.53921172]
[1772463291777,3.34343116,1978.8,1977.3,4.80356209]
[1772463291994,7.17046597,1978.8,1977.3,4.80356209]
[1772463292192,1.26533111,1978.9,1977.4,3.53921172]
[1772463292483,0.002,1978.9,1977.4,3.53921172]
[1772463292857,0.002,1978.9,1977.8,3.53921172]
[1772463293490,1.26534263,1978.9,1977.3,4.80356209]
[1772463293659,5.09237744,1978.9,1977.3,4.80356209]
[1772463294097,3.82703481,1978.8,1977.3,4.80356209]
[1772463294604,2.076,1978.7,1977.3,4.80356209]
[1772463294898,2.076,1978.6,1977.3,4.80356209]
[1772463295100,3.82703481,1978.5,1977.3,1.26435037]
[1772463295272,3.82703481,1978.5,1977.1,1.26447827]
[1772463295457,2.076,1978.4,1977.1,1.26447827]
[1772463295789,5.90203481,1978.5,1977.1,4.80368999]
[1772463296090,3.82703481,1978.4,1977.1,1.26447827]
[1772463296596,5.90203481,1978.3,1977.1,1.26447827]
[1772463296973,1.26358957,1978.5,1977.1,1.26447827]
[1772463297299,3.82703481,1978.3,1977.1,1.2644614]
[1772463297670,2.074,1978.2,1977.1,1.2644614]
[1772463297872,2.074,1978.2,1977.0,5.05945196]
[1772463297873,2.074,1978.2,1977.0,8.59866368]
[1772463298062,2.074,1978.1,1977.0,0.00153886]
[1772463298263,3.82703481,1978.0,1977.0,0.00153886]
[1772463298593,3.82703481,1977.8,1977.0,0.00153886]
[1772463298806,2.073,1977.7,1977.0,0.00153886]
[1772463299459,5.90003481,1977.7,1977.0,0.00153886]
[1772463299662,3.82703481,1977.6,1976.7,1.26570949]
[1772463299960,1.2642225,1977.5,1976.7,0.001]
[1772463300362,3.82703481,1977.4,1976.7,0.001]
[1772463300708,1.2642225,1977.5,1976.7,0.001]
[1772463300869,5.09125731,1977.5,1976.7,0.001]
[1772463301063,2.72677558,1977.8,1976.7,0.001]
[1772463301399,2.071,1977.7,1976.7,0.001]
[1772463301603,2.071,1977.6,1976.7,0.001]
[1772463301765,5.05766182,1978.0,1976.8,5.58742523]
[1772463301766,3.33644474,1978.0,1976.8,5.58742523]
[1772463301965,0.00153886,1978.0,1976.9,1.2646062]
[1772463302162,0.00153886,1978.0,1977.2,5.58742523]
[1772463302767,3.82703481,1978.7,1977.2,5.58742523]
[1772463302965,0.002,1978.9,1977.6,5.58742523]
[1772463303171,1.26532833,1978.9,1977.7,5.07621172]
[1772463303402,1.26534057,1978.9,1977.7,5.07621172]
[1772463303610,1.26534057,1978.9,1977.7,1.537]
[1772463303611,0.002,1978.9,1977.7,1.537]
[1772463303898,0.002,1978.9,1977.8,1.26403074]
[1772463304324,3.82903481,1978.9,1977.8,1.26403074]
[1772463304539,3.82903481,1978.9,1977.3,1.26435037]
[1772463304681,2.068,1978.8,1977.3,1.26435037]
[1772463305003,3.82703481,1978.7,1977.3,1.26435037]
[1772463305385,0.002,1978.9,1977.4,3.53921172]
[1772463305708,0.002,1978.9,1977.6,5.58742523]
[1772463305913,0.002,1978.9,1977.7,1.26409465]
[1772463306081,2.067,1978.8,1977.7,1.26409465]
[1772463306280,0.002,1978.9,1978.0,2.04821351]
[1772463306514,0.002,1978.9,1977.7,1.26409465]
[1772463307104,0.002,1978.9,1977.7,4.80330637]
[1772463307400,0.002,1978.9,1978.0,2.04821351]
[1772463307601,0.002,1978.9,1977.8,3.53921172]
[1772463307821,3.82903481,1978.9,1977.7,1.26409465]
[1772463307978,0.002,1978.9,1977.7,3.53921172]
[1772463308199,0.002,1979.2,1978.1,3.53921172]
[1772463308530,0.002,1979.2,1978.1,2.49932797]
[1772463309268,0.002,1979.2,1978.4,2.04821351]
[1772463309407,3.82703481,1979.0,1978.0,0.00153886]
[1772463310102,3.82703481,1979.0,1977.4,1.2642225]
[1772463310103,3.82703481,1978.8,1977.3,1.26431332]
[1772463310314,3.82703481,1978.6,1977.3,1.26431332]
[1772463311714,2.061,1978.5,1977.3,1.26431332]
[1772463311937,5.88803481,1978.5,1977.3,1.26431332]
[1772463312236,1.26332811,1978.9,1977.2,7.12142523]
[1772463312397,5.09185498,1979.0,1977.6,2.04821351]
[1772463312719,5.09185498,1979.0,1977.3,3.53921172]
[1772463312720,3.82703481,1978.9,1977.3,3.53921172]
[1772463312917,3.82703481,1978.9,1977.2,1.534]
[1772463313127,3.82703481,1978.9,1977.1,5.0574015]
[1772463313427,3.82703481,1978.9,1977.2,5.58742523]
[1772463313618,2.059,1978.8,1977.6,2.04821351]
[1772463313994,2.059,1978.8,1977.7,1.26409465]
[1772463313995,3.32242677,1978.8,1977.7,1.26409465]
[1772463314198,7.14941302,1978.9,1977.7,1.26409465]
[1772463314526,7.149365,1978.9,1977.7,1.26409465]
[1772463314728,2.87064985,1978.8,1977.7,1.26409465]
[1772463315408,2.058,1978.7,1977.7,1.26409465]
[1772463315623,2.87064985,1978.8,1977.7,1.26409465]
[1772463315995,1.2634558,1978.7,1977.6,5.05637862]
[1772463316197,2.058,1978.7,1977.6,5.05637862]
[1772463316405,6.19204207,1978.8,1977.5,5.05637862]
[1772463316725,2.058,1978.7,1977.5,2.80649947]
[1772463316927,2.058,1978.7,1977.4,5.05637862]
[1772463316928,2.87064985,1978.6,1977.4,5.05637862]
[1772463317604,2.87064985,1978.6,1977.1,5.05791008]
[1772463318000,2.65518205,1978.4,1977.1,1.26447827]
[1772463318202,2.65518205,1978.2,1977.0,0.00153886]
[1772463318824,2.65518205,1978.0,1977.0,0.00153886]
[1772463319202,2.056,1977.9,1977.0,0.00153886]
[1772463319499,2.65518205,1978.2,1977.0,0.00153886]
[1772463319812,2.65518205,1978.0,1977.0,0.00153886]
[1772463320229,2.65518205,1977.8,1977.0,0.00153886]
[1772463320966,2.055,1977.7,1976.8,0.001]
[1772463321172,0.00153886,1978.0,1976.8,0.001]
[1772463321370,0.00153886,1978.0,1976.9,2.04821351]
[1772463321647,0.00153886,1978.0,1977.7,0.001]
[1772463323446,2.052,1978.6,1977.7,0.001]
[1772463323949,1.26544596,1978.8,1977.7,0.001]
[1772463324148,1.26544596,1978.8,1977.8,1.26403074]
[1772463324149,1.26539874,1978.8,1977.8,1.26403074]
[1772463324467,2.052,1978.7,1977.8,1.26403074]
[1772463325032,0.002,1978.9,1978.1,2.04821351]
[1772463326158,0.002,1978.9,1978.2,1.26377514]
[1772463327334,0.002,1978.9,1978.2,3.31198865]
[1772463327538,0.00153886,1979.0,1978.2,3.31198865]
[1772463327764,0.00153886,1979.0,1978.2,1.26377514]
[1772463328266,0.00153886,1979.0,1978.0,5.05510059]
[1772463329167,0.002,1979.6,1978.7,2.86618064]
[1772463329931,0.002,1979.6,1978.3,2.86618064]
[1772463330130,0.002,1979.6,1978.4,1.26364739]
[1772463330576,2.65518205,1979.5,1978.4,1.26364739]
[1772463330733,2.65518205,1979.5,1978.1,1.26383903]
[1772463331140,2.65718205,1979.6,1978.3,2.04821351]
[1772463331340,2.65718205,1979.6,1978.1,1.26383903]
[1772463331585,2.65518205,1979.4,1978.0,1.26542202]
[1772463331874,2.65518205,1979.2,1978.0,1.26542202]
[1772463332236,2.65518205,1979.0,1978.0,0.00153886]
[1772463332653,2.65518205,1978.8,1977.7,0.001]
[1772463332852,5.66391676,1978.7,1977.7,0.001]
[1772463333079,2.65518205,1978.7,1977.7,0.001]
[1772463333278,2.41197547,1979.0,1977.7,0.001]
[1772463333279,2.65672091,1979.0,1977.7,0.001]
[1772463333455,2.042,1978.8,1977.7,0.001]
[1772463333651,2.65672091,1979.0,1977.7,0.001]
[1772463333960,2.65672091,1979.0,1977.7,2.86718064]
[1772463333961,0.00153886,1979.0,1977.7,2.86718064]
[1772463334160,2.041,1978.9,1977.7,2.86718064]
[1772463334358,3.30581442,1979.0,1977.8,1.26403074]
[1772463334544,3.30581442,1979.0,1977.8,4.13021138]
[1772463334740,1.26481442,1979.0,1977.8,4.13021138]
[1772463335067,3.30581442,1979.0,1977.8,4.13021138]
[1772463335963,2.04,1978.9,1977.8,4.13021138]
[1772463336164,0.00153886,1979.0,1977.9,2.86618064]
[1772463336372,0.00153886,1979.0,1978.0,4.13008357]
[1772463336576,5.05229121,1979.5,1978.0,4.13008357]
[1772463336577,2.65518205,1979.8,1978.3,2.04821351]
[1772463336878,1.26481995,1979.7,1978.4,2.86618064]
[1772463337063,1.26481995,1979.7,1978.8,2.86618064]
[1772463337064,0.002,1979.7,1978.8,2.86618064]
[1772463337265,1.26416571,1980.0,1979.1,2.04821351]
[1772463337266,0.00153886,1980.0,1979.1,2.04821351]
[1772463337576,9.79889134,1981.0,1979.6,2.86618064]
[1772463337577,0.00153886,1981.0,1979.6,2.86618064]
[1772463337777,0.00153886,1981.0,1979.9,4.91439415]
[1772463337978,1.26353334,1981.0,1980.0,2.86618064]
[1772463338278,3.91871539,1981.0,1979.6,1.26288139]
[1772463338462,2.65518205,1980.9,1979.6,1.26288139]
[1772463338666,1.26353334,1981.0,1979.1,5.05268741]
[1772463338667,2.65518205,1980.7,1979.1,5.05268741]
[1772463338845,2.65518205,1980.6,1979.0,1.26476654]
[1772463339171,2.65518205,1980.2,1979.0,0.00153886]
[1772463339370,2.65518205,1980.0,1979.0,1.26480279]
[1772463339572,2.036,1979.9,1979.0,1.26480279]
[1772463339739,2.036,1979.9,1979.0,0.00153886]
[1772463339939,0.002,1979.2,1979.0,1.26478821]
[1772463340152,2.036,1979.9,1979.0,1.26478821]
[1772463340471,1.26269003,1979.9,1979.0,0.00153886]
[1772463340949,2.035,1979.8,1979.0,0.00153886]
[1772463341151,2.65518205,1979.6,1978.4,1.26364739]
[1772463341454,4.68918205,1979.5,1978.4,1.26364739]
[1772463341654,2.65518205,1979.2,1978.0,0.00153886]
[1772463341993,2.65518205,1979.2,1978.0,1.26543505]
[1772463342154,2.033,1979.1,1978.0,1.26543505]
[1772463342486,1.26288139,1979.6,1978.1,2.86618064]
[1772463342644,2.65518205,1979.4,1978.1,2.86618064]
[1772463342843,2.65518205,1979.4,1978.0,0.00153886]
[1772463343289,4.68718205,1979.4,1978.0,0.00153886]
[1772463343499,2.65518205,1979.4,1978.0,2.8677195]
[1772463343791,2.032,1979.5,1978.1,2.86618064]
[1772463343950,2.032,1979.4,1978.1,2.86618064]
[1772463344378,3.29505572,1979.4,1978.2,4.12995578]
[1772463344675,1.26305572,1979.4,1978.2,4.12995578]
[1772463344982,1.26305572,1979.4,1978.3,2.86618064]
[1772463345394,1.26305572,1979.4,1977.9,5.05610059]
[1772463345395,0.8258381,1977.5,1977.0,2.8677195]
[1772463345679,4.68618205,1977.8,1977.0,21.15775114]
[1772463345884,2.65518205,1977.7,1977.0,18.62848096]
[1772463346096,2.65518205,1977.7,1976.7,0.001]
[1772463346253,2.65518205,1977.7,1976.9,18.62848096]
[1772463346453,3.91934062,1977.6,1976.9,18.62848096]
[1772463346654,4.68518205,1977.5,1976.9,18.62848096]
[1772463346885,2.65518205,1977.4,1976.7,0.001]
[1772463347187,2.65518205,1977.4,1976.0,0.00153886]
[1772463347753,1.14653149,1977.4,1976.0,0.00153886]
[1772463348060,2.029,1977.3,1976.0,0.00153886]
[1772463348486,1.26441432,1977.2,1976.0,0.00153886]
[1772463348690,3.29341432,1977.2,1976.0,0.00153886]
[1772463348995,1.26441432,1977.2,1976.0,3.58799566]
[1772463349660,4.75907789,1977.2,1976.0,0.00153886]
[1772463349858,2.029,1977.1,1976.0,0.00153886]
[1772463350261,4.75907789,1977.2,1976.0,0.00153886]
[1772463350262,6.78807789,1977.2,1976.0,0.00153886]
[1772463350472,3.49466357,1977.1,1976.0,0.00153886]
[1772463350674,1.26454223,1977.0,1976.0,0.00153886]
[1772463352293,1.26454223,1977.0,1976.1,0.001]
[1772463352489,1.26428643,1977.4,1976.1,3.5874568]
[1772463352661,1.26428643,1977.4,1976.2,1.26505414]
[1772463353263,3.29303074,1977.8,1976.3,3.5864568]
[1772463353463,0.00153886,1978.0,1976.9,3.5864568]
[1772463353678,0.00153886,1978.0,1976.9,5.1064568]
[1772463354197,3.49466357,1977.9,1976.4,5.1064568]
[1772463354365,3.49466357,1977.9,1976.4,3.5864568]
[1772463354366,5.52266357,1977.8,1976.4,3.5864568]
[1772463354568,1.26415857,1977.6,1976.1,5.06121657]
[1772463355180,5.52166357,1977.5,1976.1,5.06121657]
[1772463355394,3.49466357,1977.5,1976.1,8.64767337]
[1772463355594,2.027,1977.4,1976.1,8.64767337]
[1772463356097,5.52166357,1977.4,1976.1,5.06121657]
[1772463356284,2.026,1977.5,1976.1,5.06121657]
[1772463356600,6.78482214,1977.6,1976.1,5.06121657]
[1772463356793,2.026,1977.5,1976.1,5.06121657]
[1772463357102,3.49466357,1977.5,1976.1,5.06121657]
[1772463357300,2.026,1977.4,1976.1,5.06121657]
[1772463357600,3.49466357,1977.5,1976.1,5.06121657]
[1772463357769,3.49466357,1977.5,1976.1,8.64767337]
[1772463358405,3.28915857,1977.6,1976.2,3.5864568]
[1772463358565,5.0566343,1977.8,1976.2,3.5864568]
[1772463358771,3.49466357,1977.7,1976.3,1.26499013]
[1772463359484,5.333,1977.6,1976.3,1.26499013]
[1772463359798,3.49466357,1977.6,1976.3,1.26499013]
[1772463360490,5.333,1977.5,1976.3,1.26499013]
[1772463360798,5.333,1977.5,1976.1,0.001]
[1772463360799,1.26435037,1977.3,1976.1,0.001]
[1772463361200,4.75901394,1977.3,1976.1,0.001]
[1772463361403,0.00153886,1978.0,1976.7,3.5864568]
[1772463361568,0.00153886,1978.0,1976.9,3.5864568]
[1772463362076,0.00153886,1978.0,1977.0,1.518]
[1772463362275,0.00153886,1978.0,1977.0,5.1044568]
[1772463362580,2.87049188,1979.2,1977.2,3.5864568]
[1772463362581,6.5983519,1978.9,1977.2,3.5864568]
[1772463362903,6.59833356,1978.9,1977.4,3.5864568]
[1772463363091,0.002,1978.9,1977.4,3.5864568]
[1772463363280,1.26533052,1978.9,1977.4,3.5864568]
[1772463363601,6.59833052,1978.9,1977.4,3.5864568]
[1772463363804,1.26533052,1978.9,1977.4,3.5864568]
[1772463364402,4.75999409,1978.9,1977.4,3.5864568]
[1772463364599,3.49466357,1978.8,1977.4,3.5864568]
[1772463364800,1.2634558,1978.7,1977.5,1.2642225]
[1772463365103,3.49466357,1978.6,1977.1,1.26447827]
[1772463365322,1.2634558,1978.7,1977.2,3.5864568]
[1772463366073,3.49466357,1978.8,1977.2,3.5864568]
[1772463366375,3.49466357,1978.8,1977.1,1.26447827]
[1772463366575,3.49466357,1978.4,1977.0,0.00153886]
[1772463366806,4.7585026,1978.1,1977.0,0.00153886]
[1772463366975,3.49466357,1977.8,1977.0,0.00153886]
[1772463367376,3.49466357,1977.8,1976.1,0.001]
[1772463367579,3.49466357,1977.4,1976.1,0.001]
[1772463367905,2.016,1977.3,1976.1,1.26610888]
[1772463368211,2.016,1977.2,1976.1,1.26610888]
[1772463368410,5.51066357,1977.2,1976.1,1.26610021]
[1772463368584,1.17377213,1977.9,1976.1,1.26610021]
[1772463368776,4.75875822,1977.7,1976.1,3.5874568]
[1772463369091,3.49466357,1977.6,1976.1,3.5874568]
[1772463369274,3.49466357,1977.6,1977.2,0.001]
[1772463369889,3.49466357,1977.6,1976.1,0.001]
[1772463370099,2.43779016,1977.9,1976.4,3.5864568]
[1772463370607,3.49466357,1977.8,1976.1,0.001]
[1772463370810,3.49466357,1977.6,1976.1,1.26611816]
[1772463370978,5.50966357,1977.6,1976.1,1.26611816]
[1772463371303,3.49466357,1977.6,1976.1,4.85257496]
[1772463371518,0.00153886,1978.0,1976.5,3.5864568]
[1772463371687,0.00153886,1978.0,1976.2,1.512]
[1772463371688,0.00153886,1978.0,1977.0,3.5864568]
[1772463371879,0.00153886,1978.0,1977.1,5.0984568]
[1772463372378,0.00153886,1978.0,1977.2,3.5864568]
[1772463372702,1.2654616,1978.7,1977.2,3.5864568]
[1772463372896,0.002,1978.7,1977.3,4.85080717]
[1772463373305,3.49666357,1978.7,1977.3,1.26435037]
[1772463373609,3.49466357,1978.5,1977.0,1.26608109]
[1772463373817,5.333,1978.2,1977.0,0.00153886]
[1772463373976,3.49466357,1977.8,1977.0,0.00153886]
[1772463374307,2.012,1977.8,1977.0,0.00153886]
[1772463374506,6.37077734,1977.8,1977.0,0.00153886]
[1772463375005,4.35877734,1977.6,1977.0,0.00153886]
[1772463375676,6.36977734,1977.6,1977.0,0.00153886]
[1772463375888,4.35877734,1977.5,1977.0,0.00153886]
[1772463376230,1.26405818,1977.8,1977.0,0.00153886]
[1772463376724,5.0555854,1978.2,1977.0,0.00153886]
[1772463376725,5.62261637,1978.1,1977.0,0.00153886]
[1772463377136,2.011,1978.0,1977.0,0.00153886]
[1772463377490,5.62261637,1978.1,1977.0,0.00153886]
[1772463377695,4.74182563,1977.9,1977.0,0.00153886]
[1772463378004,4.74182563,1977.8,1976.7,1.26473415]
[1772463378315,4.74182563,1977.8,1976.3,6.56793639]
[1772463378521,4.74182563,1977.8,1976.1,0.001]
[1772463378522,4.74182563,1977.7,1976.1,0.001]
[1772463378689,5.333,1977.2,1976.1,1.2661081]
[1772463378893,11.33936786,1977.0,1976.1,0.001]
[1772463379089,4.74182563,1976.6,1974.1,0.001]
[1772463379317,4.74182563,1976.2,1975.0,1.26735664]
[1772463379566,4.74182563,1976.2,1975.0,0.00153886]
[1772463379832,4.74182563,1975.5,1974.2,1.26732379]
[1772463380138,4.74182563,1975.5,1974.1,1.26739529]
[1772463380139,4.74182563,1975.3,1974.1,1.26739529]
[1772463380291,2.01,1975.2,1974.1,1.26739529]
[1772463380495,4.74182563,1975.3,1974.1,1.26739529]
[1772463380727,2.48661588,1975.8,1974.1,6.03108876]
[1772463380728,2.01,1975.2,1974.1,6.03108876]
[1772463380924,2.01,1975.3,1974.1,6.03108876]
[1772463381425,1.26537429,1975.7,1974.2,4.76369347]
[1772463381793,1.26524621,1975.9,1974.4,4.76369347]
[1772463381993,0.00153886,1976.0,1974.4,4.76369347]
[1772463382196,0.00153886,1976.0,1974.5,4.76369347]
[1772463382430,1.26672232,1976.0,1974.5,4.76369347]
[1772463382596,4.74182563,1975.7,1974.3,0.001]
[1772463382795,4.74182563,1975.5,1974.3,0.001]
[1772463383026,1.26556646,1975.4,1974.3,0.001]
[1772463383338,2.008,1975.3,1974.3,0.001]
[1772463383542,1.26556646,1975.4,1974.3,0.001]
[1772463383718,2.008,1975.2,1974.3,0.001]
[1772463383920,4.74182563,1975.1,1974.1,0.001]
[1772463384241,2.008,1975.0,1973.4,4.76369347]
[1772463384428,1.26556646,1975.4,1973.3,1.26691329]
[1772463384429,1.26556646,1975.4,1973.6,4.76369347]
[1772463384739,2.007,1975.3,1973.6,4.76369347]
[1772463384916,6.00719992,1975.7,1973.8,4.76369347]
[1772463385117,0.00153886,1975.0,1973.8,4.76369347]
[1772463385312,2.00853886,1975.0,1973.8,4.76369347]
[1772463385513,2.00853886,1975.0,1973.7,1.26665653]
[1772463385747,4.74182563,1974.9,1973.6,1.26667671]
[1772463385951,4.74182563,1974.9,1973.1,5.06790999]
[1772463386243,0.00153886,1975.0,1973.2,4.76369347]
[1772463386639,2.006,1974.9,1973.2,4.76369347]
[1772463387014,3.27195098,1974.8,1973.3,1.26691329]
[1772463387210,4.74182563,1974.7,1973.3,1.26691329]
[1772463387421,2.006,1974.6,1973.3,1.26691329]
[1772463387742,4.74182563,1974.7,1973.0,0.76132524]
[1772463387743,7.61031751,1974.2,1973.0,0.76132524]
[1772463387944,2.005,1974.1,1973.0,2.02842053]
[1772463388114,2.005,1974.0,1973.0,2.02842053]
[1772463388315,4.74182563,1973.9,1972.3,5.07020316]
[1772463388518,4.74182563,1973.8,1972.3,5.07020316]
[1772463388744,2.005,1973.7,1972.3,5.07020316]
[1772463388952,1.26672071,1973.6,1972.3,5.07020316]
[1772463389518,0.00153886,1974.0,1972.4,4.76369347]
[1772463389713,2.00653886,1974.0,1972.4,4.76369347]
[1772463390030,0.00153886,1974.0,1972.4,4.76369347]
[1772463390230,1.26802732,1974.0,1972.4,4.76369347]
[1772463390409,1.26800858,1974.0,1972.4,4.76369347]
[1772463390614,4.74182563,1973.9,1972.4,4.76369347]
[1772463390815,1.26800858,1974.0,1972.4,4.76369347]
[1772463391037,2.003,1973.9,1972.5,1.26742712]
[1772463391245,6.74482563,1973.9,1972.5,1.26742712]
[1772463391550,4.74182563,1973.8,1972.5,1.26742712]
[1772463392157,2.003,1973.9,1972.5,1.26742712]
[1772463392446,2.00453886,1974.0,1972.6,4.76369347]
[1772463392623,2.00453886,1974.0,1972.5,1.26742712]
[1772463392624,4.74182563,1973.9,1972.5,1.26742712]
[1772463392818,4.74182563,1973.7,1972.4,1.26744211]
[1772463393019,4.74182563,1973.7,1972.2,1.26761991]
[1772463393020,3.26872071,1973.6,1972.2,1.26761991]
[1772463393218,3.26872071,1973.6,1971.3,1.26819865]
[1772463393219,4.74182563,1973.1,1971.3,1.26819865]
[1772463393529,5.13241885,1973.8,1971.3,1.26819865]
[1772463393530,1.26652819,1973.9,1971.5,4.76369347]
[1772463393834,1.26652819,1973.9,1971.7,4.76369347]
[1772463394145,1.26652819,1973.9,1971.3,1.26819865]
[1772463394146,0.00153886,1974.0,1972.3,4.76369347]
[1772463394513,0.00153886,1974.0,1972.5,4.76369347]